{"text_format":"1","workbook":"xlsx","n_sheets":1,"sheets":["Лист"],"not_rendered":{"charts":1,"images":0,"macros":1,"external_links":0,"defined_names":2,"comments":0,"pivot_tables":0},"unopened":[],"bounds":{"document_bytes":16777216,"sheet_cells":100000,"rows_first":2000,"rows_last":500,"rows_between":2000,"halvings":0,"cell_chars":16384,"cell_head_chars":4096},"cells_cut":0,"cells_raw":0,"read":"whole","date_system":"1900"}

{"sheet":"Лист","index":0,"n_rows":36,"n_cols":40,"rows_kept":36,"cut":false,"hidden":false,"merged":[[0,3,0,8],[0,9,0,14],[22,0,22,16]]}
[null,null,null,null,null,null,null,null,null,null,null,null,null,null,null,1,2,3,4,5,6,7,8,9,10,11,12,13,14,15,16,17,18,null,{"$f":"COLUMNS($AI:AI)*3","v":3},{"$f":"COLUMNS($AI:AJ)*3","v":6},{"$f":"COLUMNS($AI:AK)*3","v":9},{"$f":"COLUMNS($AI:AL)*3","v":12},{"$f":"COLUMNS($AI:AM)*3","v":15},{"$f":"COLUMNS($AI:AN)*3","v":18}]
["Название 1",null,null,null,null,null,null,null,null,null,null,null,null,null,null,null,null,null,null,null,null,null,null,null,null,null,null,null,null,null,null,null,null,null,{"$f":"INDEX($P2:$AG2,COLUMNS($AI:AI)*3)","v":0},{"$f":"INDEX($P2:$AG2,COLUMNS($AI:AJ)*3)","v":0},{"$f":"INDEX($P2:$AG2,COLUMNS($AI:AK)*3)","v":0},{"$f":"INDEX($P2:$AG2,COLUMNS($AI:AL)*3)","v":0},{"$f":"INDEX($P2:$AG2,COLUMNS($AI:AM)*3)","v":0},{"$f":"INDEX($P2:$AG2,COLUMNS($AI:AN)*3)","v":0}]
["Название 2",null,null,null,null,null,null,null,null,null,null,null,null,null,null,null,null,null,null,null,null,null,null,null,null,null,null,null,null,null,null,null,null,null,{"$f":"INDEX($P3:$AG3,COLUMNS($AI:AI)*3)","v":0},{"$f":"INDEX($P3:$AG3,COLUMNS($AI:AJ)*3)","v":0},{"$f":"INDEX($P3:$AG3,COLUMNS($AI:AK)*3)","v":0},{"$f":"INDEX($P3:$AG3,COLUMNS($AI:AL)*3)","v":0},{"$f":"INDEX($P3:$AG3,COLUMNS($AI:AM)*3)","v":0},{"$f":"INDEX($P3:$AG3,COLUMNS($AI:AN)*3)","v":0}]
["Название 3",null,null,null,null,null,null,null,null,null,null,null,null,null,null,null,null,null,null,null,null,null,null,null,null,null,null,null,null,null,null,null,null,null,{"$f":"INDEX($P4:$AG4,COLUMNS($AI:AI)*3)","v":0},{"$f":"INDEX($P4:$AG4,COLUMNS($AI:AJ)*3)","v":0},{"$f":"INDEX($P4:$AG4,COLUMNS($AI:AK)*3)","v":0},{"$f":"INDEX($P4:$AG4,COLUMNS($AI:AL)*3)","v":0},{"$f":"INDEX($P4:$AG4,COLUMNS($AI:AM)*3)","v":0},{"$f":"INDEX($P4:$AG4,COLUMNS($AI:AN)*3)","v":0}]
["Название 4",null,null,null,null,null,null,null,null,null,null,null,null,null,null,null,null,null,null,null,null,null,null,null,null,null,null,null,null,null,null,null,null,null,{"$f":"INDEX($P5:$AG5,COLUMNS($AI:AI)*3)","v":0},{"$f":"INDEX($P5:$AG5,COLUMNS($AI:AJ)*3)","v":0},{"$f":"INDEX($P5:$AG5,COLUMNS($AI:AK)*3)","v":0},{"$f":"INDEX($P5:$AG5,COLUMNS($AI:AL)*3)","v":0},{"$f":"INDEX($P5:$AG5,COLUMNS($AI:AM)*3)","v":0},{"$f":"INDEX($P5:$AG5,COLUMNS($AI:AN)*3)","v":0}]
["Название 5",null,null,null,null,null,null,null,null,null,null,null,null,null,null,1,1,5,1,1,5,1,1,5,1,1,5,1,1,5,1,1,5,null,{"$f":"INDEX($P6:$AG6,COLUMNS($AI:AI)*3)","v":5},{"$f":"INDEX($P6:$AG6,COLUMNS($AI:AJ)*3)","v":5},{"$f":"INDEX($P6:$AG6,COLUMNS($AI:AK)*3)","v":5},{"$f":"INDEX($P6:$AG6,COLUMNS($AI:AL)*3)","v":5},{"$f":"INDEX($P6:$AG6,COLUMNS($AI:AM)*3)","v":5},{"$f":"INDEX($P6:$AG6,COLUMNS($AI:AN)*3)","v":5}]
["Название 6",null,null,null,null,null,null,null,null,null,null,null,null,null,null,null,null,null,null,null,null,null,null,null,null,null,null,null,null,null,null,null,null,null,{"$f":"INDEX($P7:$AG7,COLUMNS($AI:AI)*3)","v":0},{"$f":"INDEX($P7:$AG7,COLUMNS($AI:AJ)*3)","v":0},{"$f":"INDEX($P7:$AG7,COLUMNS($AI:AK)*3)","v":0},{"$f":"INDEX($P7:$AG7,COLUMNS($AI:AL)*3)","v":0},{"$f":"INDEX($P7:$AG7,COLUMNS($AI:AM)*3)","v":0},{"$f":"INDEX($P7:$AG7,COLUMNS($AI:AN)*3)","v":0}]
["Название 7",null,null,null,null,null,null,null,null,null,null,null,null,null,null,null,null,null,null,null,null,null,null,null,null,null,null,null,null,null,null,null,null,null,{"$f":"INDEX($P8:$AG8,COLUMNS($AI:AI)*3)","v":0},{"$f":"INDEX($P8:$AG8,COLUMNS($AI:AJ)*3)","v":0},{"$f":"INDEX($P8:$AG8,COLUMNS($AI:AK)*3)","v":0},{"$f":"INDEX($P8:$AG8,COLUMNS($AI:AL)*3)","v":0},{"$f":"INDEX($P8:$AG8,COLUMNS($AI:AM)*3)","v":0},{"$f":"INDEX($P8:$AG8,COLUMNS($AI:AN)*3)","v":0}]
["Название 8",null,null,null,null,null,null,null,null,null,null,null,null,null,null,null,null,null,null,null,null,null,null,null,null,null,null,null,null,null,null,null,null,null,{"$f":"INDEX($P9:$AG9,COLUMNS($AI:AI)*3)","v":0},{"$f":"INDEX($P9:$AG9,COLUMNS($AI:AJ)*3)","v":0},{"$f":"INDEX($P9:$AG9,COLUMNS($AI:AK)*3)","v":0},{"$f":"INDEX($P9:$AG9,COLUMNS($AI:AL)*3)","v":0},{"$f":"INDEX($P9:$AG9,COLUMNS($AI:AM)*3)","v":0},{"$f":"INDEX($P9:$AG9,COLUMNS($AI:AN)*3)","v":0}]
["Название 9",null,null,null,null,null,null,null,null,null,null,null,null,null,null,null,null,null,null,null,null,null,null,null,null,null,null,null,null,null,null,null,null,null,{"$f":"INDEX($P10:$AG10,COLUMNS($AI:AI)*3)","v":0},{"$f":"INDEX($P10:$AG10,COLUMNS($AI:AJ)*3)","v":0},{"$f":"INDEX($P10:$AG10,COLUMNS($AI:AK)*3)","v":0},{"$f":"INDEX($P10:$AG10,COLUMNS($AI:AL)*3)","v":0},{"$f":"INDEX($P10:$AG10,COLUMNS($AI:AM)*3)","v":0},{"$f":"INDEX($P10:$AG10,COLUMNS($AI:AN)*3)","v":0}]
["Название 10",null,null,null,null,null,null,null,null,null,null,null,null,null,null,null,null,null,null,null,null,null,null,null,null,null,null,null,null,null,null,null,null,null,{"$f":"INDEX($P11:$AG11,COLUMNS($AI:AI)*3)","v":0},{"$f":"INDEX($P11:$AG11,COLUMNS($AI:AJ)*3)","v":0},{"$f":"INDEX($P11:$AG11,COLUMNS($AI:AK)*3)","v":0},{"$f":"INDEX($P11:$AG11,COLUMNS($AI:AL)*3)","v":0},{"$f":"INDEX($P11:$AG11,COLUMNS($AI:AM)*3)","v":0},{"$f":"INDEX($P11:$AG11,COLUMNS($AI:AN)*3)","v":0}]
["Название 11",null,null,null,null,null,null,null,null,null,null,null,null,null,null,null,null,null,null,null,null,null,null,null,null,null,null,null,null,null,null,null,null,null,{"$f":"INDEX($P12:$AG12,COLUMNS($AI:AI)*3)","v":0},{"$f":"INDEX($P12:$AG12,COLUMNS($AI:AJ)*3)","v":0},{"$f":"INDEX($P12:$AG12,COLUMNS($AI:AK)*3)","v":0},{"$f":"INDEX($P12:$AG12,COLUMNS($AI:AL)*3)","v":0},{"$f":"INDEX($P12:$AG12,COLUMNS($AI:AM)*3)","v":0},{"$f":"INDEX($P12:$AG12,COLUMNS($AI:AN)*3)","v":0}]
["Название 12",null,null,null,null,null,null,null,null,null,null,null,null,null,null,null,null,null,null,null,null,null,null,null,null,null,null,null,null,null,null,null,null,null,{"$f":"INDEX($P13:$AG13,COLUMNS($AI:AI)*3)","v":0},{"$f":"INDEX($P13:$AG13,COLUMNS($AI:AJ)*3)","v":0},{"$f":"INDEX($P13:$AG13,COLUMNS($AI:AK)*3)","v":0},{"$f":"INDEX($P13:$AG13,COLUMNS($AI:AL)*3)","v":0},{"$f":"INDEX($P13:$AG13,COLUMNS($AI:AM)*3)","v":0},{"$f":"INDEX($P13:$AG13,COLUMNS($AI:AN)*3)","v":0}]
["Название 13",null,null,null,null,null,null,null,null,null,null,null,null,null,null,null,null,null,null,null,null,null,null,null,null,null,null,null,null,null,null,null,null,null,{"$f":"INDEX($P14:$AG14,COLUMNS($AI:AI)*3)","v":0},{"$f":"INDEX($P14:$AG14,COLUMNS($AI:AJ)*3)","v":0},{"$f":"INDEX($P14:$AG14,COLUMNS($AI:AK)*3)","v":0},{"$f":"INDEX($P14:$AG14,COLUMNS($AI:AL)*3)","v":0},{"$f":"INDEX($P14:$AG14,COLUMNS($AI:AM)*3)","v":0},{"$f":"INDEX($P14:$AG14,COLUMNS($AI:AN)*3)","v":0}]
["Название 14",null,null,null,null,null,null,null,null,null,null,null,null,null,null,null,null,null,null,null,null,null,null,null,null,null,null,null,null,null,null,null,null,null,{"$f":"INDEX($P15:$AG15,COLUMNS($AI:AI)*3)","v":0},{"$f":"INDEX($P15:$AG15,COLUMNS($AI:AJ)*3)","v":0},{"$f":"INDEX($P15:$AG15,COLUMNS($AI:AK)*3)","v":0},{"$f":"INDEX($P15:$AG15,COLUMNS($AI:AL)*3)","v":0},{"$f":"INDEX($P15:$AG15,COLUMNS($AI:AM)*3)","v":0},{"$f":"INDEX($P15:$AG15,COLUMNS($AI:AN)*3)","v":0}]
["Название 15",null,null,null,null,null,null,null,null,null,null,null,null,null,null,null,null,null,null,null,null,null,null,null,null,null,null,null,null,null,null,null,null,null,{"$f":"INDEX($P16:$AG16,COLUMNS($AI:AI)*3)","v":0},{"$f":"INDEX($P16:$AG16,COLUMNS($AI:AJ)*3)","v":0},{"$f":"INDEX($P16:$AG16,COLUMNS($AI:AK)*3)","v":0},{"$f":"INDEX($P16:$AG16,COLUMNS($AI:AL)*3)","v":0},{"$f":"INDEX($P16:$AG16,COLUMNS($AI:AM)*3)","v":0},{"$f":"INDEX($P16:$AG16,COLUMNS($AI:AN)*3)","v":0}]
["Название 16",null,null,null,null,null,null,null,null,null,null,null,null,null,null,null,null,null,null,null,null,null,null,null,null,null,null,null,null,null,null,null,null,null,{"$f":"INDEX($P17:$AG17,COLUMNS($AI:AI)*3)","v":0},{"$f":"INDEX($P17:$AG17,COLUMNS($AI:AJ)*3)","v":0},{"$f":"INDEX($P17:$AG17,COLUMNS($AI:AK)*3)","v":0},{"$f":"INDEX($P17:$AG17,COLUMNS($AI:AL)*3)","v":0},{"$f":"INDEX($P17:$AG17,COLUMNS($AI:AM)*3)","v":0},{"$f":"INDEX($P17:$AG17,COLUMNS($AI:AN)*3)","v":0}]
["Название 17",null,null,null,null,null,null,null,null,null,null,null,null,null,null,null,null,null,null,null,null,null,null,null,null,null,null,null,null,null,null,null,null,null,{"$f":"INDEX($P18:$AG18,COLUMNS($AI:AI)*3)","v":0},{"$f":"INDEX($P18:$AG18,COLUMNS($AI:AJ)*3)","v":0},{"$f":"INDEX($P18:$AG18,COLUMNS($AI:AK)*3)","v":0},{"$f":"INDEX($P18:$AG18,COLUMNS($AI:AL)*3)","v":0},{"$f":"INDEX($P18:$AG18,COLUMNS($AI:AM)*3)","v":0},{"$f":"INDEX($P18:$AG18,COLUMNS($AI:AN)*3)","v":0}]
["Название 18",null,null,null,null,null,null,null,null,null,null,null,null,null,null,null,null,null,null,null,null,null,null,null,null,null,null,null,null,null,null,null,null,null,{"$f":"INDEX($P19:$AG19,COLUMNS($AI:AI)*3)","v":0},{"$f":"INDEX($P19:$AG19,COLUMNS($AI:AJ)*3)","v":0},{"$f":"INDEX($P19:$AG19,COLUMNS($AI:AK)*3)","v":0},{"$f":"INDEX($P19:$AG19,COLUMNS($AI:AL)*3)","v":0},{"$f":"INDEX($P19:$AG19,COLUMNS($AI:AM)*3)","v":0},{"$f":"INDEX($P19:$AG19,COLUMNS($AI:AN)*3)","v":0}]
["Название 19",null,null,null,null,null,null,null,null,null,null,null,null,null,null,null,null,null,null,null,null,null,null,null,null,null,null,null,null,null,null,null,null,null,{"$f":"INDEX($P20:$AG20,COLUMNS($AI:AI)*3)","v":0},{"$f":"INDEX($P20:$AG20,COLUMNS($AI:AJ)*3)","v":0},{"$f":"INDEX($P20:$AG20,COLUMNS($AI:AK)*3)","v":0},{"$f":"INDEX($P20:$AG20,COLUMNS($AI:AL)*3)","v":0},{"$f":"INDEX($P20:$AG20,COLUMNS($AI:AM)*3)","v":0},{"$f":"INDEX($P20:$AG20,COLUMNS($AI:AN)*3)","v":0}]
["Название 20"]
[]
["Необходимо, чтобы в диаграмме учитывались не все подряд ячейки от P5 до AG5, а только выделенные желтой заливкой"]
[]
[5]
[]
[null,null,null,null,null,null,null,null,null,null,null,null,null,null,null,null,null,null,null,null,null,null,null,null,null,null,null," "]
[]
[null,null,null,null,null,null,null,null,null,null,null,null,null,null,null,null,null,null,null,null,null,null,null,null," "]
[]
[null,null,null,null,null,null,null,null,null,null,null,null,null,null,null,null,null,null,null,null,null,null,null,null," "]
[]
[]
[]
[]
[3]